[Event "1000GM Schev-G2 April 2024"]
[Site "Santa Clara"]
[Date "2024.04.21"]
[Round "4.1"]
[White "Fiedorek, Michal"]
[Black "Rajaram, Rohan"]
[Result "1-0"]
[ECO "B90"]
[WhiteElo "2310"]
[BlackElo "2198"]
[Annotator "TA"]
[PlyCount "87"]
[EventDate "2024.03.06"]
[EventType "schev"]
[EventCountry "USA"]
[SourceTitle "playchess.com"]
[Source "ChessBase"]
[SourceQuality "1"]
[TimeControl "5400+30"]

{[%evp 12,87,34,0,15,1,22,-13,0,-27,0,0,0,0,43,-43,-43,-62,0,7,0,0,0,14,21,2,16,18,0,13,60,-16,-16,-20,141,110,405,389,405,393,412,379,367,372,503,492,461,301,773,769,762,765,677,742,854,819,1180,1239,1250,1201,5385,4946,1336,575,5460,5456,29992,29987,29987,29988,29988,29989,29995,29988,29997,29998,29998,29999]} 1. e4 {[%emt 0:00:05]} c5 {[%emt 0:00:06]} 2. Nf3 {[%emt 0:00:03]} d6 {[%emt 0:00:06]} 3. d4 {[%emt 0:00:04]} cxd4 {[%emt 0:00:04]} 4. Nxd4 {[%emt 0:00:06]} Nf6 {[%emt 0:00:08]} 5. Nc3 {[%emt 0:00:04]} a6 {[%emt 0:00:04]} 6. h3 {[%emt 0:00:06]} e5 {[%emt 0:00:04]} 7. Nb3 {[%emt 0:00:06]} Be7 {[%emt 0:00:20]} 8. Be3 {[%emt 0:00:07]} h6 {[%emt 0:00:05]} 9. Qe2 {[%emt 0:01:16]} b5 {[%emt 0:03:49] The position is equal.} 10. g4 {[%emt 0:00:52]} b4 {[%emt 0:03:10]} 11. Nd5 {[%emt 0:00:37]} Nxd5 {[%emt 0:01:11]} 12. exd5 {[%emt 0:00:04]} Nd7 {[%emt 0:00:55]} 13. O-O-O {[%emt 0:01:32]} (13. a3 $14) 13... O-O {[%emt 0:04:20]} 14. f4 {[%emt 0:03:05]} exf4 {[%emt 0:08:15]} (14... a5 $15 15. fxe5 Nxe5) 15. Bxf4 $11 {[%emt 0:00:20]} Bb7 {[%emt 0:01:04]} 16. Kb1 {[%emt 0:03:05]} Rc8 {[%emt 0:02:14]} 17. Bg2 {[%emt 0:10:19]} Re8 {[%emt 0:03:06]} 18. Qd2 {[%emt 0:08:21]} a5 {[%emt 0:08:18]} 19. Nd4 {[%emt 0:07:18]} Nb6 {[%emt 0:05:14]} 20. Nc6 $36 {[%emt 0:02:41][%mdl 2048] White is pushing.} Qc7 {[%emt 0:11:38]} (20... Qd7 $11) 21. Qd3 {[%emt 0:11:07]} (21. Nxa5 Nxd5 22. Bxd5 Bxd5 23. Qxd5 Qxc2+ 24. Ka1 Bf6 $19) ({White should try} 21. Rhe1 $1 $14) 21... Bf6 {[%emt 0:03:55][%cal Ob6d5]} 22. h4 {[%emt 0:02:10][%cal Bh3h4,Bh4h5][%mdl 32]} Na4 $2 {[%emt 0:01:33]} (22... Nxd5 $1 $11 23. Bxd5 Bxc6 24. Bxd6 Qd8) 23. Bc1 $16 {[%emt 0:02:44] [#] Strongly threatening g5. White is more active.} Bxc6 $4 {[%emt 0:11:04][%mdl 8192] Loses the game.} (23... Nc5 $16 24. Qh3 Be5) 24. dxc6 $18 {[%emt 0:00:05]} Be5 {[%emt 0:00:04]} 25. g5 {[%emt 0:00:43]} Kh8 {[%emt 0:02:32]} 26. gxh6 {[%emt 0:00:42]} g6 {[%emt 0:02:07]} 27. h5 {[%emt 0:00:31]} Rg8 {[%emt 0:01:08]} 28. Bd5 {[%emt 0:05:33][%cal Bg2d5,Bd5e4,Be4f5][%mdl 32]} Nb6 {[%emt 0:00:24]} 29. Be4 {[%emt 0:01:48]} f5 $2 {[%emt 0:01:23]} (29... g5 30. Be3 (30. h7 Rge8 $18) 30... f6) 30. hxg6 {[%emt 0:01:39]} Rxg6 {[%emt 0:00:23]} 31. Bxf5 {[%emt 0:00:07]} Rg3 {[%emt 0:00:06]} 32. Qe2 {[%emt 0:01:55]} Re8 {[%emt 0:01:43]} 33. Be4 {[%emt 0:02:38]} a4 {[%emt 0:01:41]} 34. Qh5 {[%emt 0:02:23]} Qe7 {[%emt 0:03:57]} 35. Rhf1 {[%emt 0:04:11]} Rf8 {[%emt 0:01:10] Wards off Rf7} 36. Rxf8+ {[%emt 0:05:22]} Qxf8 {[%emt 0:00:08]} 37. Qf5 {[%emt 0:05:22]} (37. Rf1 $142 Qxf1 38. Qe8+ Rg8 39. Qe7) 37... Qe7 {[%emt 0:01:21] [#]} 38. c7 $1 {[%emt 0:04:24][%cal Oc1e3] Intending Be3! and mate.} Qxc7 {[%emt 0:00:56]} (38... Rg8 39. Be3) 39. Rxd6 {[%emt 0:00:45] White mates.} Bxd6 {[%emt 0:01:05]} 40. Qf6+ {[%emt 0:00:06]} Rg7 {[%emt 0:00:04]} 41. hxg7+ {[%emt 0:00:06]} ({Stronger than} 41. Qxg7+ Qxg7 42. hxg7+ Kxg7 $11) 41... Kg8 {[%emt 0:00:05]} 42. Qe6+ {[%emt 0:00:45]} Kxg7 {[%emt 0:00:16]} 43. Bh6+ {[%emt 0:00:04] This pair of bishops is nice.} Kh8 {[%emt 0:00:10]} 44. Qe8+ {[%emt 0:00:11] Weighted Error Value: White=0.54/Black=0.47.  Loses game:     	---       	Black=1      Mistake:       	White=2     	Black=4      Inaccurate:     	White=3     	Black=4      OK:         	White=10    	Black=7      Best:        	White=2     	Black=1} 1-0

[Event "1000GM Schev-G2 April 2024"]
[Site "Santa Clara"]
[Date "2024.04.21"]
[Round "4.2"]
[White "Heimann, Alexander"]
[Black "Guo, Ethan"]
[Result "1-0"]
[ECO "A09"]
[WhiteElo "2251"]
[BlackElo "2211"]
[Annotator "TA"]
[PlyCount "63"]
[EventDate "2024.03.06"]
[EventType "schev"]
[EventCountry "USA"]
[SourceTitle "playchess.com"]
[Source "ChessBase"]
[SourceQuality "1"]
[TimeControl "5400+30"]

{[%evp 12,63,-9,-13,-17,-15,-13,-22,13,-14,-35,-24,115,116,275,276,291,224,235,250,230,237,230,249,243,235,479,449,422,351,345,354,592,593,607,639,640,637,631,0,566,0,598,637,625,628,866,856,1075,1079,1810,1619,29998,29999]} 1. Nf3 d5 2. c4 d4 3. e3 Nc6 4. exd4 Nxd4 5. Nxd4 Qxd4 6. Nc3 c6 7. d3 Nh6 {[%cal Bg8h6,Bh6f5,Bf5d4][%mdl 32]} 8. Be3 Qd6 9. Ne4 Qe5 {The position is equal.} 10. Qd2 Nf5 $1 11. Bf4 Qe6 {[#]} (11... Qd4 $11) 12. O-O-O $1 $16 {White leaves nothing to chance now.} g6 $2 {[#]} (12... h5 $16) 13. Re1 $1 $18 {Hoping for Nc5.} Bg7 14. g4 ({Don't play} 14. Nd6+ $6 Nxd6 15. Rxe6 Bxe6 $16) 14... Nd4 {[%cal Oe8g8] [#]} 15. Nd6+ $1 {[%mdl 512]} exd6 16. Bxd6 Qxe1+ 17. Qxe1+ Be6 18. Qa5 b6 $2 (18... Rd8) 19. Qg5 f6 20. Qe3 c5 21. b4 Kf7 $2 (21... Bf8) 22. bxc5 bxc5 23. Bxc5 Nc6 24. Bg2 {[%emt 0:12:00]} Rac8 {[%emt 0:12:00]} 25. Bf1 {[%emt 0:12:55]} Ra8 $1 {[%emt 1:31:00]} 26. Bg2 {[%emt 0:06:43]} Rac8 {[%emt 0:00:00]} 27. Re1 {[%emt 0:06:02]} Rhe8 {[%emt 0:00:00]} 28. Qf4 {[%emt 0:00:51]} Na5 {[%emt 0:00:00]} 29. d4 {[%emt 0:01:19][%cal Oe1e6] Threatens to win with Rxe6!} Bxc4 {[%emt 0:00:00]} 30. Rxe8 {[%emt 0:00:02]} Kxe8 {[%emt 0:00:00]} 31. Qd6 {[%emt 0:00:45]} Bf8 {[%emt 0:00:00] Prevents Qe7+} 32. Qxf8+ {[%emt 0:00:04] Weighted Error Value: White=0.59/Black=0.45.  Mistake:       	---       	Black=4      Inaccurate:     	White=1     	Black=1      OK:         	White=4     	Black=6      Best:        	White=1     	Black=3      Strong:       	White=2     	Black=1      Brilliant:      	White=1     	---} 1-0

[Event "1000GM Schev-G2 April 2024"]
[Site "Santa Clara"]
[Date "2024.04.21"]
[Round "4.3"]
[White "Yan, Nathan"]
[Black "Gracia Alvarez, Gerardo Antonio"]
[Result "1-0"]
[ECO "C07"]
[WhiteElo "2181"]
[BlackElo "2240"]
[Annotator "TA"]
[PlyCount "67"]
[EventDate "2024.03.06"]
[EventType "schev"]
[EventCountry "USA"]
[SourceTitle "playchess.com"]
[Source "ChessBase"]
[SourceQuality "1"]
[TimeControl "5400+30"]

{[%evp 15,67,15,19,0,18,17,27,1,12,0,-5,0,0,0,0,3,37,32,25,28,56,64,289,291,285,287,294,287,283,264,549,565,551,402,386,335,302,306,446,452,560,564,668,653,686,689,754,727,748,741,770,747,755,765]} 1. e4 {[%emt 0:15:14]} e6 {[%emt 0:00:04]} 2. d4 {[%emt 0:01:16]} d5 {[%emt 0:00:05]} 3. Nd2 {[%emt 0:00:29]} c5 {[%emt 0:00:07]} 4. Ngf3 {[%emt 0:01:02]} cxd4 {[%emt 0:00:20]} 5. Nxd4 {[%emt 0:00:03]} Nc6 {[%emt 0:00:13]} 6. Bb5 {[%emt 0:01:24]} Bd7 {[%emt 0:00:08]} 7. Nxc6 {[%emt 0:00:13]} bxc6 {[%emt 0:00:20]} 8. Bd3 {[%emt 0:00:08]} Qc7 {[%emt 0:00:31]} 9. Nf3 {[%emt 0:01:29]} Bd6 {[%emt 0:03:04]} 10. Qe2 {[%emt 0:00:46]} dxe4 {[%emt 0:00:07]} 11. Bxe4 {[%emt 0:00:57] White has an edge.} Nf6 {[%emt 0:00:12]} 12. Bd3 {[%emt 0:00:06]} O-O {[%emt 0:03:17]} 13. O-O {[%emt 0:01:28]} Rae8 {[%emt 0:06:12] White must now prevent ...e5.} 14. Bg5 {[%emt 0:20:28]} Nd5 {[%emt 0:00:24]} 15. c4 {[%emt 0:01:56]} Nf4 {[%emt 0:00:56]} (15... h6 $5 16. cxd5 hxg5 17. dxc6 Bxc6 $11) 16. Bxf4 {[%emt 0:00:09]} Bxf4 {[%emt 0:00:04]} 17. g3 {[%emt 0:00:23] Dodges e5} e5 {[%emt 0:16:27][%cal Oe5e4]} 18. Qc2 $1 {[%emt 0:07:09]} (18. gxf4 e4 19. Rfe1 (19. Bxe4 Qxf4 20. Nd2 f5 $11) 19... Qxf4 20. Bxe4 Bh3 $17) 18... Kh8 {[%emt 0:26:00] This costs Black the game.} 19. gxf4 $18 {[%emt 0:10:33]} e4 {[%emt 0:00:09]} 20. Bxe4 {[%emt 0:14:06]} Qxf4 {[%emt 0:00:07] [#]} 21. Nd2 {[%emt 0:00:29][%cal Bf3d2,Bd2f1,Bf1g3][%mdl 32]} (21. Bxh7 {gets mated.} Qg4+ (21... Qxf3 $2 22. Qd1 $19) 22. Kh1 Qxf3+ 23. Kg1 Re5 (23... Bh3 24. Be4 Rxe4 25. Qxe4 Qxe4 26. f3 Qg6+ 27. Kf2 Qc2+ 28. Kg3 Qg2+ 29. Kh4 g5+ 30. Kh5 Kg7 31. Rh1 Rh8#) (23... Bh3 24. Be4 Rxe4 25. Qxe4 Qxe4 26. f3 Qg6+ 27. Kf2 Qc2+ 28. Ke3 Re8+ 29. Kd4 Qd2+ 30. Kc5 Re5+ 31. Kxc6 Qd7#)) 21... Bh3 {[%emt 0:05:49]} 22. Rfe1 {[%emt 0:00:20]} f5 $2 {[%emt 0:07:40]} (22... Rxe4 {was necessary.} 23. Qxe4 (23. Nxe4 $2 {leads to mate.} Qf3 24. Ng5 Qg2#) 23... Qg5+ 24. Kh1 Qxd2) 23. Bxc6 {[%emt 0:05:32]} Rd8 {[%emt 0:00:43]} 24. Nf1 {[%emt 0:03:46]} Rd6 {[%emt 0:04:57]} 25. Bg2 {[%emt 0:03:12]} Bxg2 {[%emt 0:05:48]} 26. Kxg2 {[%emt 0:00:02]} Qg4+ {[%emt 0:00:09]} (26... Rg6+ $142 27. Ng3 h5) 27. Ng3 {[%emt 0:02:59] White is clearly winning.} h5 {[%emt 0:08:26][%cal Bh7h5,Bh5h4][%mdl 32]} 28. Qe2 {[%emt 0:01:31]} Qf4 {[%emt 0:00:38]} 29. Qe5 {[%emt 0:01:16]} Qxe5 {[%emt 0:00:03]} 30. Rxe5 {[%emt 0:00:06]} h4 {[%emt 0:00:06]} 31. Rxf5 {[%emt 0:00:34]} Rb8 {[%emt 0:00:20]} 32. Rh5+ {[%emt 0:00:56]} Kg8 {[%emt 0:00:08]} 33. Rxh4 {[%emt 0:00:20]} Rxb2 {[%emt 0:00:03]} 34. c5 {[%emt 0:07:08] Weighted Error Value: White=0.16 (very precise) /Black=0.59.  Loses game:     	---       	Black=1      Mistake:       	---       	Black=2      Inaccurate:     	White=1     	Black=2      OK:         	White=10    	Black=7      Best:        	White=4     	---        Strong:       	White=1     	---} 1-0

[Event "1000GM Schev-G2 April 2024"]
[Site "Santa Clara"]
[Date "2024.04.21"]
[Round "4.4"]
[White "Iinuma, Paul Y"]
[Black "Dominguez Aguilar, Guillermo"]
[Result "1-0"]
[ECO "A70"]
[WhiteElo "2165"]
[BlackElo "2285"]
[Annotator "TA"]
[PlyCount "53"]
[EventDate "2024.03.06"]
[EventType "schev"]
[EventCountry "USA"]
[SourceTitle "playchess.com"]
[Source "ChessBase"]
[SourceQuality "1"]
[TimeControl "5400+30"]

{[%evp 16,53,50,0,8,14,43,43,31,34,58,37,53,42,51,60,97,83,116,89,100,92,420,445,450,430,427,418,431,407,440,434,797,777,770,838,761,766,832,822]} 1. d4 {[%emt 0:09:31]} Nf6 {[%emt 0:00:19]} 2. c4 {[%emt 0:00:07]} c5 {[%emt 0:00:23]} 3. d5 {[%emt 0:00:10]} e6 {[%emt 0:00:24]} 4. Nc3 {[%emt 0:00:09]} exd5 {[%emt 0:00:21]} 5. cxd5 {[%emt 0:00:01]} d6 {[%emt 0:00:11]} 6. Nf3 {[%emt 0:00:19]} g6 {[%emt 0:00:20]} 7. h3 {[%emt 0:00:09]} Bg7 {[%emt 0:00:10]} 8. e4 {[%emt 0:00:10]} O-O {[%emt 0:00:23]} 9. Be3 {[%emt 0:00:05]} ({White should play} 9. Bd3 $14) 9... a6 {[%emt 0:00:23]} 10. a4 {[%emt 1:24:49]} Nbd7 {[%emt 0:04:31]} 11. Be2 {[%emt 0:00:00]} Ne8 {[%emt 0:03:27] White is slightly better.} 12. O-O {[%emt 0:00:00]} Rb8 {[%emt 0:04:25]} 13. Nd2 {[%emt 0:00:00][%cal Bf3d2,Bd2c4,Bc4a5,Ba5c6][%mdl 32]} Qe7 {[%emt 0:01:28]} 14. Re1 {[%emt 0:00:00]} Nc7 {[%emt 0:01:24]} 15. Nc4 {[%emt 0:00:00]} b5 {[%emt 0:01:00]} 16. Na5 {[%emt 0:00:00] Strongly threatening Nc6.} b4 {[%emt 0:16:42]} 17. Nc6 $1 {[%emt 0:00:00][%csl LRb8,LRe7]} Qe8 {[%emt 0:11:48] [#]} 18. Nb1 $36 {[%emt 0:00:00][%cal Bc3b1,Bb1d2,Bd2e4,Be4d6,Bd6b5][%mdl 2080] Keeping Black busy. White is much more active. The black rooks are passive.} Qxe4 {[%emt 0:05:16][%mdl 8192]} (18... Rb6 $16 {is more resistant.}) 19. Nd2 $18 {[%emt 0:00:00]} Qh4 {[%emt 0:01:09][%cal Oc7d5]} 20. g3 {[%emt 0:00:00]} Qf6 {[%emt 0:01:21]} (20... Qxh3 21. Bg4) 21. Ne4 {[%emt 0:00:00]} Qxb2 {[%emt 0:00:39]} 22. Rb1 {[%emt 0:00:00]} Qa2 {[%emt 0:00:12][%cal Od7b6]} 23. Nxd6 {[%emt 0:00:00] White is clearly winning.} ({Less strong is} 23. Nxb8 Nxb8 24. Nxd6 Qxd5 $18) 23... Ra8 {[%emt 0:18:53]} ({Weaker is} 23... Nxd5 24. Bc4) (23... Nb6 $142 24. Ne7+ (24. Nxb8 Ncxd5 25. Bxc5 Nc3 $18) 24... Kh8 25. Nexc8 (25. Bxc5 Ncxd5 26. Bxb6 Nc3 $18) 25... Nxc8) 24. Bc4 {[%emt 0:00:00]} Qa3 {[%emt 0:00:13]} 25. Bb3 {[%emt 0:00:00]} Nb5 {[%emt 0:02:14]} 26. axb5 {[%emt 0:00:00]} axb5 {[%emt 0:00:02]} 27. Nxb5 {[%emt 0:00:00] Black did not feel at home in the position after the opening.   Weighted Error Value: White=0.03 (flawless) /Black=0.52.  Loses game:     	---       	Black=1      Mistake:       	---       	Black=1      Inaccurate:     	---       	Black=3      OK:         	White=7     	Black=6      Best:        	White=4     	---} 1-0

[Event "1000GM Schev-G2 April 2024"]
[Site "Santa Clara"]
[Date "2024.04.21"]
[Round "4.5"]
[White "Kokoszczynski, Jan"]
[Black "Tang, Dylan"]
[Result "1-0"]
[ECO "A13"]
[WhiteElo "2287"]
[BlackElo "2217"]
[Annotator "TA"]
[PlyCount "93"]
[EventDate "2024.03.06"]
[EventType "schev"]
[EventCountry "USA"]
[SourceTitle "playchess.com"]
[Source "ChessBase"]
[SourceQuality "1"]
[TimeControl "5400+30"]

{[%evp 9,93,8,7,4,2,3,16,2,17,3,0,0,8,0,0,0,0,0,27,4,10,4,9,8,16,0,0,0,0,-42,0,0,4,0,30,31,93,79,68,87,93,100,120,120,125,108,127,95,146,146,135,149,163,172,191,190,251,254,273,216,283,283,350,319,352,314,391,317,360,358,482,492,519,530,598,533,640,612,1017,832,997,883,1258,1214,1621,1096]} 1. Nf3 {[%emt 0:04:48]} d5 {[%emt 0:00:21]} 2. g3 {[%emt 0:00:21]} Nf6 {[%emt 0:00:49]} 3. Bg2 {[%emt 0:00:11]} e6 {[%emt 0:00:16]} 4. c4 {[%emt 0:03:13]} dxc4 {[%emt 0:00:19]} 5. Qa4+ {[%emt 0:00:04]} Bd7 {[%emt 0:00:11]} 6. Qxc4 {[%emt 0:00:06]} c5 {[%emt 0:00:05]} 7. Ne5 {[%emt 0:00:09]} Qc8 {[%emt 0:00:08]} 8. Qd3 {[%emt 0:00:05] The position is equal.} Be7 {[%emt 0:11:30]} 9. Nc3 {[%emt 0:02:33]} Bc6 {[%emt 0:03:06]} 10. Nxc6 {[%emt 0:02:58]} Nxc6 {[%emt 0:00:02]} 11. Qb5 {[%emt 0:08:09]} O-O {[%emt 0:02:54]} 12. Bxc6 {[%emt 0:00:31]} bxc6 {[%emt 0:00:09]} 13. Qa4 {[%emt 0:02:52]} Rd8 {[%emt 0:05:37]} 14. d3 {[%emt 0:04:15]} Rd4 {[%emt 0:04:18]} 15. Qc2 {[%emt 0:02:35]} c4 {[%emt 0:05:19]} 16. dxc4 {[%emt 0:04:50]} Rxc4 {[%emt 0:00:39]} 17. b3 {[%emt 0:06:41]} Rc5 {[%emt 0:03:09] Strongly threatening ...Qb7.} 18. Be3 {[%emt 0:02:17]} (18. Ba3 $2 Rxc3 19. Qxc3 Bxa3 $19) 18... Rh5 {[%emt 0:01:02]} 19. f3 {[%emt 0:12:47] Against Ng4} c5 {[%emt 0:13:05]} 20. Ne4 {[%emt 0:11:12]} Nd5 {[%emt 0:06:39]} 21. Bd2 {[%emt 0:00:06]} f5 {[%emt 0:01:56]} 22. Nf2 {[%emt 0:00:04]} Bf6 {[%emt 0:01:40]} (22... Qa6 $14) 23. Rc1 $16 {[%emt 0:00:07]} Bd4 {[%emt 0:00:15]} 24. Qd3 $1 {[%emt 0:08:45]} Qf8 {[%emt 0:13:15]} 25. e3 {[%emt 0:02:07]} Bf6 {[%emt 0:00:26]} 26. Qc4 {[%emt 0:01:37]} Rc8 {[%emt 0:03:29]} 27. Qa6 {[%emt 0:03:56]} Re8 {[%emt 0:06:45]} 28. Qxa7 {[%emt 0:02:58]} Be7 {[%emt 0:01:31]} ({Black should play} 28... Ra8 29. Qd7 (29. Qxc5 Qxc5 30. Rxc5 Rxa2 $14) 29... Kh8) 29. Qa6 {[%emt 0:04:21]} Rh6 {[%emt 0:01:39]} 30. Qc4 {[%emt 0:01:44] Hoping for e4.} Bd6 {[%emt 0:01:24]} 31. a4 {[%emt 0:02:14]} g5 {[%emt 0:01:15]} 32. e4 {[%emt 0:02:50]} Rg6 {[%emt 0:00:28]} (32... f4 $142) 33. O-O $18 {[%emt 0:00:48][%cal Be1g1,Bg1g2,Bg2h1][%mdl 32]} (33. exd5 $2 {perishes.} exd5+ $19) 33... Nb6 {[%emt 0:03:04]} 34. Qe2 {[%emt 0:01:25]} h5 {[%emt 0:01:23][%cal Bh7h5,Bh5h4,Bh4h3][%mdl 32]} 35. Bc3 {[%emt 0:01:15]} h4 {[%emt 0:00:19]} 36. Kg2 {[%emt 0:00:57]} Re7 {[%emt 0:01:48]} 37. Rcd1 {[%emt 0:00:20]} Rh7 {[%emt 0:01:26] Prevents Rxd6} 38. g4 {[%emt 0:00:58]} ({Don't play} 38. Qd3 Bc7 39. exf5 c4 $18) 38... h3+ {[%emt 0:01:47]} 39. Kh1 {[%emt 0:00:00]} fxg4 {[%emt 0:00:12]} 40. Nxg4 {[%emt 0:00:58] White is clearly winning.} Bf4 {[%emt 0:00:48]} 41. a5 {[%emt 0:00:49][%cal Ba4a5,Ba5a6][%mdl 32]} Nc8 {[%emt 0:00:28]} 42. Qb5 {[%emt 0:00:39]} Rf7 {[%emt 0:00:31]} 43. Rd3 {[%emt 0:00:27]} Bd6 {[%emt 0:01:40][%cal Bf4d6,Bd6e7,Be7c5][%mdl 32]} 44. Be5 {[%emt 0:01:38]} Be7 {[%emt 0:00:33]} 45. a6 {[%emt 0:00:18]} c4 {[%emt 0:01:12]} 46. Qxc4 {[%emt 0:00:17]} Bc5 {[%emt 0:00:07]} 47. Rc3 {[%emt 0:00:49] Weighted Error Value: White=0.14 (very precise) /Black=0.32.  Mistake:       	---       	Black=3      Inaccurate:     	White=1     	Black=6      OK:         	White=16    	Black=10     Best:        	White=2     	---        Strong:       	White=1     	---} 1-0

[Event "1000GM Schev-G2 April 2024"]
[Site "Santa Clara"]
[Date "2024.04.22"]
[Round "5.1"]
[White "Rajaram, Rohan"]
[Black "Heimann, Alexander"]
[Result "1/2-1/2"]
[ECO "E18"]
[WhiteElo "2198"]
[BlackElo "2251"]
[Annotator "TA"]
[PlyCount "79"]
[EventDate "2024.03.06"]
[EventType "schev"]
[EventCountry "USA"]
[SourceTitle "playchess.com"]
[Source "ChessBase"]
[SourceQuality "1"]
[TimeControl "5400+30"]

{[%evp 16,79,8,0,-9,-20,13,17,22,9,13,17,40,25,31,0,0,0,0,4,78,6,0,0,8,0,0,0,0,0,0,0,0,0,0,0,0,0,0,-13,26,0,10,0,43,7,56,0,0,-20,-20,-26,-12,-25,-23,-37,0,0,15,0,40,31,169,89,97,97]} 1. d4 {[%emt 0:00:10]} Nf6 {[%emt 0:00:06]} 2. c4 {[%emt 0:00:05]} e6 {[%emt 0:00:03]} 3. Nf3 {[%emt 0:00:07]} b6 {[%emt 0:00:10]} 4. g3 {[%emt 0:00:08]} Bb7 {[%emt 0:00:08]} 5. Bg2 {[%emt 0:00:08]} Be7 {[%emt 0:00:04]} 6. O-O {[%emt 0:00:11]} O-O {[%emt 0:00:03]} 7. Nc3 {[%emt 0:00:58]} Ne4 {[%emt 0:00:05]} 8. Nxe4 {[%emt 0:01:25]} Bxe4 {[%emt 0:00:04]} 9. Nd2 {[%emt 0:01:23]} Bxg2 {[%emt 0:00:25]} 10. Kxg2 {[%emt 0:00:06]} f5 {[%emt 0:00:43]} 11. Nf3 {[%emt 0:01:38]} Bf6 {[%emt 0:00:13] The position is equal.} 12. b3 {[%emt 1:30:11]} Nc6 {[%emt 0:01:13]} 13. e3 {[%emt 0:00:30]} d5 {[%emt 0:04:14]} 14. Bb2 {[%emt 0:00:00]} Na5 {[%emt 0:03:36]} 15. Rc1 {[%emt 0:00:00]} dxc4 {[%emt 0:02:08]} 16. bxc4 {[%emt 0:00:00]} c5 {[%emt 0:00:08]} 17. Qe2 {[%emt 0:00:00]} cxd4 {[%emt 0:01:41]} (17... Nb7 $11 {remains equal.}) 18. exd4 {[%emt 0:00:00]} (18. Bxd4 $16 Bxd4 19. exd4) 18... Re8 $11 {[%emt 0:00:18]} 19. Rfd1 {[%emt 0:00:00]} Rc8 {[%emt 0:00:37]} 20. Rc2 {[%emt 0:00:00]} Qd7 {[%emt 0:00:47]} 21. Rdc1 {[%emt 0:00:00]} Nb7 {[%emt 0:02:42]} 22. Qe3 {[%emt 0:00:00]} Nd6 {[%emt 0:01:22]} 23. Nd2 {[%emt 0:00:00]} Red8 {[%emt 0:04:56]} 24. Kg1 {[%emt 0:00:00]} Nf7 {[%emt 0:02:27][%cal Rf6d4]} 25. Nf3 {[%emt 0:00:00]} h6 {[%emt 0:00:57]} 26. Re1 {[%emt 0:00:00]} Re8 {[%emt 0:00:07]} 27. Qb3 {[%emt 0:00:00]} Qc6 {[%emt 0:02:06]} 28. Rec1 {[%emt 0:00:00]} Bg5 {[%emt 0:01:43]} 29. Re1 {[%emt 0:00:00]} Qd7 {[%emt 0:02:51]} 30. Rce2 {[%emt 0:00:00]} Nd6 {[%emt 0:00:27]} (30... Bf6 $11 {is superior.}) 31. Rc2 {[%emt 0:00:00]} (31. Ne5 $14 Qb7 32. Ba3) 31... Bf6 {[%emt 0:01:28]} 32. Rec1 {[%emt 0:00:00]} Ne4 {[%emt 0:01:06]} 33. a3 {[%emt 0:00:00]} Qf7 {[%emt 0:03:50]} 34. Nd2 {[%emt 0:00:00]} Nxd2 {[%emt 0:04:41]} 35. Rxd2 {[%emt 0:00:00][%cal Bc2d2,Bd2d3,Bd3f3][%mdl 32]} f4 {[%emt 0:00:20]} 36. Re1 {[%emt 0:00:00]} Bg5 {[%emt 0:01:00] [#] Threatens to win with ...fxg3.} 37. Rd3 {[%emt 0:00:00]} Qf5 {[%emt 0:01:51]} 38. Rf3 {[%emt 0:00:00]} Qg4 {[%emt 0:03:35]} (38... Qg6 $14) 39. Kg2 {[%emt 0:00:00]} (39. h4 $1 $18 {[%cal Rh4g5]} fxg3 40. hxg5 gxf2+ 41. Kxf2) 39... fxg3 $16 {[%emt 0:00:51]} 40. hxg3 {[%emt 0:00:00] Weighted Error Value: White=0.17 (very precise) /Black=0.21 (precise) .  Mistake:       	White=3     	Black=3      Inaccurate:     	White=3     	Black=5      OK:         	White=7     	Black=12} 1/2-1/2

[Event "1000GM Schev-G2 April 2024"]
[Site "Santa Clara"]
[Date "2024.04.22"]
[Round "5.2"]
[White "Gracia Alvarez, Gerardo Antonio"]
[Black "Guo, Ethan"]
[Result "1/2-1/2"]
[ECO "B51"]
[WhiteElo "2240"]
[BlackElo "2211"]
[Annotator "TA"]
[PlyCount "58"]
[EventDate "2024.03.06"]
[EventType "schev"]
[EventCountry "USA"]
[SourceTitle "playchess.com"]
[Source "ChessBase"]
[SourceQuality "1"]
[TimeControl "5400+30"]

{[%evp 9,58,14,12,12,27,22,35,28,37,34,30,32,43,18,41,32,43,34,34,40,47,14,22,-4,-8,0,-8,-19,-30,-58,-60,-56,-67,-127,-134,-178,-116,-117,-32,-52,-58,-52,-43,-62,-52,-52,6,-8,0,0,0]} 1. e4 {[%emt 0:00:03]} c5 {[%emt 1:31:00]} 2. Nf3 d6 3. Bb5+ Nd7 {[%cal Bb8d7,Bd7e5,Be5f3][%mdl 32]} 4. c3 Ngf6 5. Bd3 g6 6. Bc2 Ne5 7. d4 Nxf3+ 8. Qxf3 {White is slightly better.} cxd4 9. cxd4 Bg7 10. O-O O-O 11. h3 Bd7 12. Nc3 Bc6 13. Qe2 e6 14. Rd1 Qa5 15. Bd2 Qb6 {[%csl LRb2,LRd4]} 16. Rab1 Qxd4 17. Bf4 Qb6 18. Bxd6 Rfd8 19. b4 Ne8 {[%csl LRc3,LRd6]} 20. Bc5 Qc7 21. Na4 ({White should try} 21. Qc4 $15) 21... b6 $17 {[%emt 0:00:00] Hoping for ...Bxa4.} 22. Be3 {[%emt 0:10:04]} Rxd1+ {[%emt 0:00:00]} (22... Bb5 $19 23. Qxb5 Qxc2) 23. Rxd1 {[%emt 0:00:30] [#]} Rd8 {[%emt 0:00:00]} ({Black should play} 23... Bb5 $1 $17 {[%cal Rb5e2]} 24. Qxb5 Qxc2) 24. Rxd8 $15 {[%emt 0:00:30]} Qxd8 {[%emt 0:00:00]} 25. Qc4 {[%emt 0:00:30]} Qd7 {[%emt 0:00:00]} 26. Nc3 {[%emt 0:00:30]} Nd6 {[%emt 0:00:00]} 27. Qd3 {[%emt 0:00:30]} Nb5 {[%emt 0:00:00] Against Bd4} (27... Bxc3 $15 28. Qxc3 Bxe4) 28. Qxd7 {[%emt 0:00:30]} Bxd7 {[%emt 0:00:00]} 29. Nxb5 {[%emt 0:00:30]} Bxb5 {[%emt 0:00:00] Weighted Error Value: White=0.14 (very precise) /Black=0.14 (very precise) .  Mistake:       	White=1     	Black=3      Inaccurate:     	White=4     	---        OK:         	White=7     	Black=8      Best:        	---       	Black=2} 1/2-1/2